[Event "*** MasterClass Titled Tuesday Blitz"]
[Site "Chess.com"]
[Date "2017.12.12"]
[Round "6"]
[White "Sam_ChessMood"]
[Black "RoelandPruijssers"]
[Result "0-1"]
[WhiteElo "2600"]
[BlackElo "2509"]
[TimeControl "180+2"]
[EndTime "14:25:59 PST"]
[Termination "RoelandPruijssers won by resignation"]

1. e4 {[%clk 0:03:01.9]} 1... c5 {[%clk 0:03:01]} 2. Nf3 {[%clk 0:03:02.5]} 2...
d6 {[%clk 0:03:02.3]} 3. d4 {[%clk 0:03:03]} 3... cxd4 {[%clk 0:03:04.2]} 4.
Nxd4 {[%clk 0:03:04.7]} 4... Nf6 {[%clk 0:03:05.7]} 5. Nc3 {[%clk 0:03:06]} 5...
Nc6 {[%clk 0:03:07.2]} 6. Bg5 {[%clk 0:03:01.7]} 6... Bd7 {[%clk 0:03:07.8]} 7.
Qd2 {[%clk 0:03:02.2]} 7... Nxd4 {[%clk 0:03:06.2]} 8. Qxd4 {[%clk 0:03:03.1]}
8... Qa5 {[%clk 0:03:07.1]} 9. Bd2 {[%clk 0:02:50.1]} 9... e5 {[%clk 0:03:05.6]}
10. Qd3 {[%clk 0:02:46.8]} 10... Qc7 {[%clk 0:03:06.9]} 11. O-O-O {[%clk
0:02:38]} 11... Be7 {[%clk 0:02:59.5]} 12. Bg5 {[%clk 0:02:36.3]} 12... Be6
{[%clk 0:02:45.5]} 13. Nb5 {[%clk 0:02:30.4]} 13... Qc6 {[%clk 0:02:40.3]} 14.
Bxf6 {[%clk 0:02:21.5]} 14... gxf6 {[%clk 0:02:42.2]} 15. Nxd6+ {[%clk
0:02:18.2]} 15... Kf8 {[%clk 0:01:49.7]} 16. Nf5 {[%clk 0:02:11.8]} 16... Bxf5
{[%clk 0:01:49.4]} 17. exf5 {[%clk 0:02:12.7]} 17... Rd8 {[%clk 0:01:50.4]} 18.
Qe2 {[%clk 0:02:09.3]} 18... Rxd1+ {[%clk 0:01:49.8]} 19. Qxd1 {[%clk
0:02:10.2]} 19... Bc5 {[%clk 0:01:45.6]} 20. Bc4 {[%clk 0:01:39.5]} 20... Bxf2
{[%clk 0:01:22.3]} 21. Bd5 {[%clk 0:01:39.8]} 21... Qc5 {[%clk 0:01:19.4]} 22.
Bxb7 {[%clk 0:01:03.2]} 22... Ke7 {[%clk 0:01:17.4]} 23. Qd5 {[%clk 0:00:57.9]}
23... Qb6 {[%clk 0:01:09.5]} 24. Rd1 {[%clk 0:00:38.4]} 24... Rb8 {[%clk
0:00:59.9]} 25. Qd7+ {[%clk 0:00:27.7]} 25... Kf8 {[%clk 0:01:00.6]} 26. Bd5
{[%clk 0:00:28.7]} 26... Be3+ {[%clk 0:00:54.9]} 27. Rd2 {[%clk 0:00:29.4]}
27... Kg7 {[%clk 0:00:53.9]} 28. Qxf7+ {[%clk 0:00:27.8]} 28... Kh8 {[%clk
0:00:55.1]} 29. Kd1 {[%clk 0:00:20.1]} 29... Bxd2 {[%clk 0:00:51.8]} 30. Kxd2
{[%clk 0:00:21.5]} 30... Rc8 {[%clk 0:00:37.1]} 31. c4 {[%clk 0:00:14.7]} 31...
Qxb2+ {[%clk 0:00:37.4]} 32. Ke1 {[%clk 0:00:16]} 32... Qb1+ {[%clk 0:00:31]}
33. Ke2 {[%clk 0:00:14.3]} 33... Qxa2+ {[%clk 0:00:31.7]} 34. Kf3 {[%clk
0:00:13.9]} 34... Qa3+ {[%clk 0:00:31.2]} 35. Kg4 {[%clk 0:00:13.5]} 35... Qd6
{[%clk 0:00:28.4]} 36. Qxa7 {[%clk 0:00:10.6]} 36... Qf8 {[%clk 0:00:26.8]} 37.
Kf3 {[%clk 0:00:10.1]} 37... Qh6 {[%clk 0:00:25.6]} 38. g3 {[%clk 0:00:10.3]}
38... Qxh2 {[%clk 0:00:23.6]} 39. Qd7 {[%clk 0:00:09.8]} 39... Rb8 {[%clk
0:00:21.3]} 40. c5 {[%clk 0:00:10.9]} 40... Qh1+ {[%clk 0:00:18.9]} 41. Ke3
{[%clk 0:00:11.7]} 41... Qg1+ {[%clk 0:00:19.9]} 42. Kf3 {[%clk 0:00:12.7]}
42... Qxc5 {[%clk 0:00:17.3]} 43. Qe6 {[%clk 0:00:13.3]} 43... Rf8 {[%clk
0:00:17.4]} 44. g4 {[%clk 0:00:13.5]} 44... Qc7 {[%clk 0:00:18.1]} 45. g5 {[%clk
0:00:11.9]} 45... Qg7 {[%clk 0:00:18.5]} 46. gxf6 {[%clk 0:00:11.8]} 46... Qxf6
{[%clk 0:00:20.4]} 47. Qxf6+ {[%clk 0:00:13]} 47... Rxf6 {[%clk 0:00:21]} 48.
Ke4 {[%clk 0:00:14.4]} 48... Kg7 {[%clk 0:00:22]} 49. Kxe5 {[%clk 0:00:15.8]}
49... Rb6 {[%clk 0:00:23.4]} 50. Be6 {[%clk 0:00:12.1]} 50... Rb5+ {[%clk
0:00:23.6]} 51. Kf4 {[%clk 0:00:12.1]} 51... Kf6 {[%clk 0:00:24.2]} 52. Kg4
{[%clk 0:00:13.4]} 52... Rb4+ {[%clk 0:00:24.2]} 53. Kh5 {[%clk 0:00:14.3]}
53... Rb1 {[%clk 0:00:25.7]} 54. Kg4 {[%clk 0:00:09.7]} 54... Rg1+ {[%clk
0:00:26.2]} 55. Kh4 {[%clk 0:00:10.1]} 55... Rh1+ {[%clk 0:00:22.6]} 56. Kg4
{[%clk 0:00:11.3]} 56... h5+ {[%clk 0:00:24]} 57. Kg3 {[%clk 0:00:10.5]} 57...
Kg5 {[%clk 0:00:21.7]} 58. Kg2 {[%clk 0:00:11.6]} 58... Rc1 {[%clk 0:00:22.1]}
59. Kg3 {[%clk 0:00:12.7]} 59... Rc3+ {[%clk 0:00:22.9]} 60. Kg2 {[%clk
0:00:13.4]} 60... h4 {[%clk 0:00:23.4]} 61. Kh2 {[%clk 0:00:13.9]} 61... Re3
{[%clk 0:00:21.4]} 62. Kg2 {[%clk 0:00:14.4]} 62... Kg4 {[%clk 0:00:22.6]} 63.
f6+ {[%clk 0:00:13.6]} 63... Rxe6 {[%clk 0:00:22.9]} 0-1

[Event "*** MasterClass Titled Tuesday Blitz"]
[Site "Chess.com"]
[Date "2017.12.12"]
[Round "6"]
[White "FMJoseHerrera"]
[Black "SharkAnto55"]
[Result "0-1"]
[WhiteElo "2421"]
[BlackElo "2372"]
[TimeControl "180+2"]
[EndTime "14:26:11 PST"]
[Termination "SharkAnto55 won by checkmate"]

1. Nf3 {[%clk 0:02:54.9]} 1... d5 {[%clk 0:02:58.6]} 2. g3 {[%clk 0:02:56.8]}
2... Bg4 {[%clk 0:02:59.7]} 3. Bg2 {[%clk 0:02:58.3]} 3... Nd7 {[%clk
0:03:00.9]} 4. O-O {[%clk 0:02:59.9]} 4... c6 {[%clk 0:03:02.3]} 5. d3 {[%clk
0:03:01.5]} 5... e6 {[%clk 0:03:01.9]} 6. Nbd2 {[%clk 0:03:02.3]} 6... Bd6
{[%clk 0:03:03.1]} 7. c3 {[%clk 0:03:03.6]} 7... Ne7 {[%clk 0:03:04.1]} 8. Qb3
{[%clk 0:03:04.7]} 8... Qb6 {[%clk 0:03:04.4]} 9. Rd1 {[%clk 0:02:59.9]} 9...
O-O {[%clk 0:03:02.6]} 10. Nf1 {[%clk 0:03:00.8]} 10... a5 {[%clk 0:02:55.5]}
11. e4 {[%clk 0:02:48.9]} 11... Qxb3 {[%clk 0:02:21.8]} 12. axb3 {[%clk
0:02:50.8]} 12... Ne5 {[%clk 0:02:22.8]} 13. N1d2 {[%clk 0:02:20.2]} 13... Nxd3
{[%clk 0:02:22]} 14. exd5 {[%clk 0:02:20.2]} 14... exd5 {[%clk 0:02:19.8]} 15.
h3 {[%clk 0:02:16.3]} 15... Bh5 {[%clk 0:02:16.2]} 16. Nf1 {[%clk 0:02:10.8]}
16... Nc5 {[%clk 0:02:06]} 17. g4 {[%clk 0:02:05.6]} 17... Bg6 {[%clk
0:02:06.5]} 18. Nd4 {[%clk 0:02:06.9]} 18... f5 {[%clk 0:01:58.5]} 19. Bg5
{[%clk 0:01:11.5]} 19... fxg4 {[%clk 0:01:54.3]} 20. hxg4 {[%clk 0:01:13.4]}
20... h6 {[%clk 0:01:38.3]} 21. Be3 {[%clk 0:01:13.4]} 21... Rfe8 {[%clk
0:01:07.7]} 22. Nd2 {[%clk 0:00:42.6]} 22... Nd3 {[%clk 0:00:59.7]} 23. Ra2
{[%clk 0:00:43.5]} 23... h5 {[%clk 0:00:38.2]} 24. g5 {[%clk 0:00:23.1]} 24...
Nf5 {[%clk 0:00:32.6]} 25. Nxf5 {[%clk 0:00:24.1]} 25... Bxf5 {[%clk 0:00:34.3]}
26. Nf3 {[%clk 0:00:25.7]} 26... Nc5 {[%clk 0:00:22.8]} 27. Nd4 {[%clk
0:00:25.4]} 27... Bg4 {[%clk 0:00:21.5]} 28. Rda1 {[%clk 0:00:23.1]} 28... Nd3
{[%clk 0:00:18.3]} 29. Rxa5 {[%clk 0:00:22.1]} 29... Rxa5 {[%clk 0:00:19.6]} 30.
Rxa5 {[%clk 0:00:24]} 30... Nxb2 {[%clk 0:00:20]} 31. Ra7 {[%clk 0:00:25.5]}
31... Re7 {[%clk 0:00:20.8]} 32. b4 {[%clk 0:00:26.9]} 32... Nc4 {[%clk
0:00:19.1]} 33. Nc2 {[%clk 0:00:23.5]} 33... Kh7 {[%clk 0:00:19.4]} 34. b5
{[%clk 0:00:22.5]} 34... Bf5 {[%clk 0:00:18.2]} 35. bxc6 {[%clk 0:00:20.6]}
35... bxc6 {[%clk 0:00:17.9]} 36. Rxe7 {[%clk 0:00:21.1]} 36... Bxe7 {[%clk
0:00:19.8]} 37. Nd4 {[%clk 0:00:23]} 37... Nxe3 {[%clk 0:00:20.4]} 38. fxe3
{[%clk 0:00:24.9]} 38... Bd7 {[%clk 0:00:21.7]} 39. e4 {[%clk 0:00:25.9]} 39...
dxe4 {[%clk 0:00:21.5]} 40. Bxe4+ {[%clk 0:00:27.8]} 40... g6 {[%clk 0:00:22.3]}
41. Nxc6 {[%clk 0:00:29.3]} 41... Bxg5 {[%clk 0:00:23.3]} 42. Ne5 {[%clk
0:00:30.9]} 42... Be8 {[%clk 0:00:23.7]} 43. c4 {[%clk 0:00:32]} 43... Bf6
{[%clk 0:00:25.1]} 44. Nd3 {[%clk 0:00:31.1]} 44... Kg7 {[%clk 0:00:26.2]} 45.
Kg2 {[%clk 0:00:32.6]} 45... Bd4 {[%clk 0:00:27]} 46. Kf3 {[%clk 0:00:33.2]}
46... Kf6 {[%clk 0:00:28.1]} 47. Nf4 {[%clk 0:00:34.8]} 47... g5 {[%clk
0:00:28.8]} 48. Nd5+ {[%clk 0:00:36]} 48... Ke5 {[%clk 0:00:29.8]} 49. Nc7
{[%clk 0:00:34.9]} 49... Bd7 {[%clk 0:00:29.2]} 50. Bd5 {[%clk 0:00:34.8]} 50...
g4+ {[%clk 0:00:30.2]} 51. Kg2 {[%clk 0:00:36.3]} 51... h4 {[%clk 0:00:30.9]}
52. Nb5 {[%clk 0:00:37.7]} 52... Be3 {[%clk 0:00:31.6]} 53. Nc3 {[%clk
0:00:38.3]} 53... Bf4 {[%clk 0:00:31.8]} 54. Ne2 {[%clk 0:00:39.2]} 54... h3+
{[%clk 0:00:32.9]} 55. Kh1 {[%clk 0:00:40.6]} 55... g3 {[%clk 0:00:33.5]} 56.
Bf3 {[%clk 0:00:40.8]} 56... Be6 {[%clk 0:00:32.3]} 57. c5 {[%clk 0:00:39.4]}
57... Bc4 {[%clk 0:00:31.7]} 58. Ng1 {[%clk 0:00:32]} 58... Be6 {[%clk
0:00:13.4]} 59. c6 {[%clk 0:00:32.9]} 59... Kd4 {[%clk 0:00:13.5]} 60. Ne2+
{[%clk 0:00:30.1]} 60... Ke3 {[%clk 0:00:14.5]} 61. Nxf4 {[%clk 0:00:31.5]}
61... Kxf4 {[%clk 0:00:15.6]} 62. Be2 {[%clk 0:00:28]} 62... Bd5+ {[%clk
0:00:16.6]} 63. Kg1 {[%clk 0:00:28.9]} 63... h2+ {[%clk 0:00:17.5]} 64. Kf1
{[%clk 0:00:23.6]} 64... h1=Q# {[%clk 0:00:19.4]} 0-1

[Event "*** MasterClass Titled Tuesday Blitz"]
[Site "Chess.com"]
[Date "2017.12.12"]
[Round "6"]
[White "Hanging_pointer"]
[Black "nicegg"]
[Result "0-1"]
[WhiteElo "2266"]
[BlackElo "1987"]
[TimeControl "180+2"]
[EndTime "14:26:38 PST"]
[Termination "nicegg won by resignation"]

1. Nf3 {[%clk 0:03:01.8]} 1... d5 {[%clk 0:03:00.6]} 2. g3 {[%clk 0:02:55.3]}
2... d4 {[%clk 0:03:01.6]} 3. Bg2 {[%clk 0:02:57.2]} 3... c5 {[%clk 0:03:02.5]}
4. O-O {[%clk 0:02:55.7]} 4... Nc6 {[%clk 0:03:03.4]} 5. c3 {[%clk 0:02:54]}
5... e5 {[%clk 0:03:02.3]} 6. cxd4 {[%clk 0:02:42.4]} 6... exd4 {[%clk
0:03:02.7]} 7. d3 {[%clk 0:02:37.9]} 7... Nf6 {[%clk 0:03:03.4]} 8. a3 {[%clk
0:02:26.6]} 8... Be7 {[%clk 0:03:03.1]} 9. b4 {[%clk 0:02:27.5]} 9... cxb4
{[%clk 0:02:58.3]} 10. axb4 {[%clk 0:02:29.4]} 10... Bxb4 {[%clk 0:02:46.5]} 11.
Qa4 {[%clk 0:02:24.6]} 11... O-O {[%clk 0:02:43.3]} 12. Ne5 {[%clk 0:02:17.7]}
12... a5 {[%clk 0:02:21]} 13. Nxc6 {[%clk 0:02:13.4]} 13... bxc6 {[%clk
0:02:20.6]} 14. Bxc6 {[%clk 0:02:15.3]} 14... Bd7 {[%clk 0:02:15.8]} 15. Bg5
{[%clk 0:01:50.7]} 15... Bxc6 {[%clk 0:02:02.8]} 16. Qxc6 {[%clk 0:01:52.6]}
16... Rc8 {[%clk 0:01:59.5]} 17. Qf3 {[%clk 0:01:41.7]} 17... Qd5 {[%clk
0:01:40]} 18. Bxf6 {[%clk 0:01:36.4]} 18... Qxf3 {[%clk 0:01:39.4]} 19. exf3
{[%clk 0:01:38.2]} 19... gxf6 {[%clk 0:01:39.9]} 20. Rd1 {[%clk 0:01:34.9]}
20... Rfe8 {[%clk 0:01:32.9]} 21. Kf1 {[%clk 0:01:34.7]} 21... Rc2 {[%clk
0:01:32.4]} 22. Na3 {[%clk 0:01:28]} 22... Bxa3 {[%clk 0:01:26.8]} 23. Rxa3
{[%clk 0:01:29.8]} 23... Ree2 {[%clk 0:01:27.4]} 24. Rxa5 {[%clk 0:01:30.5]}
24... Rxf2+ {[%clk 0:01:28.3]} 25. Kg1 {[%clk 0:01:31.8]} 25... Rg2+ {[%clk
0:01:29.4]} 26. Kf1 {[%clk 0:01:32.6]} 26... Rxh2 {[%clk 0:01:29.5]} 27. Kg1
{[%clk 0:01:34]} 27... Rcg2+ {[%clk 0:01:29.7]} 28. Kf1 {[%clk 0:01:34.4]} 28...
Rxg3 {[%clk 0:01:28.6]} 29. Rf5 {[%clk 0:01:30.7]} 29... Kg7 {[%clk 0:01:17.5]}
30. Rf4 {[%clk 0:01:25.2]} 30... Rh1+ {[%clk 0:00:56.9]} 31. Kf2 {[%clk
0:01:25.9]} 31... Rxd1 {[%clk 0:00:57.3]} 32. Kxg3 {[%clk 0:01:25.7]} 32... Rxd3
{[%clk 0:00:58.4]} 33. Rg4+ {[%clk 0:01:22.9]} 33... Kf8 {[%clk 0:00:59.5]} 34.
Rh4 {[%clk 0:01:23.5]} 34... Rd1 {[%clk 0:00:59]} 35. Kf4 {[%clk 0:01:21.3]}
35... d3 {[%clk 0:01:00.1]} 36. Ke3 {[%clk 0:01:22.5]} 36... Kg7 {[%clk
0:00:58]} 37. Rg4+ {[%clk 0:01:22.3]} 37... Kh6 {[%clk 0:00:58.6]} 38. Rh4+
{[%clk 0:01:23.2]} 38... Kg6 {[%clk 0:00:59.4]} 39. Rg4+ {[%clk 0:01:19.1]}
39... Kf5 {[%clk 0:00:59.9]} 40. Rh4 {[%clk 0:01:19.7]} 40... Kg6 {[%clk
0:00:52.5]} 41. Rg4+ {[%clk 0:01:19.3]} 41... Kh5 {[%clk 0:00:53.5]} 42. Rf4
{[%clk 0:01:20.4]} 42... Kg6 {[%clk 0:00:49.3]} 43. Rg4+ {[%clk 0:01:21.5]}
43... Kf5 {[%clk 0:00:50.4]} 44. Rh4 {[%clk 0:01:21.4]} 44... Ke6 {[%clk
0:00:50.4]} 45. Rxh7 {[%clk 0:01:20.2]} 45... f5 {[%clk 0:00:50.6]} 46. Rh4
{[%clk 0:01:16.4]} 46... Ke5 {[%clk 0:00:50.6]} 47. f4+ {[%clk 0:01:05.8]} 47...
Kd5 {[%clk 0:00:49.4]} 48. Rh8 {[%clk 0:00:57.2]} 48... d2 {[%clk 0:00:40.7]}
49. Rd8+ {[%clk 0:00:55.4]} 49... Kc4 {[%clk 0:00:40.2]} 50. Rc8+ {[%clk
0:00:56.3]} 50... Kd5 {[%clk 0:00:40.3]} 51. Rd8+ {[%clk 0:00:57.4]} 51... Ke6
{[%clk 0:00:41.3]} 52. Re8+ {[%clk 0:00:27.4]} 52... Kf6 {[%clk 0:00:40.4]} 53.
Ra8 {[%clk 0:00:18]} 53... Rf1 {[%clk 0:00:38.7]} 54. Ra6+ {[%clk 0:00:16.6]}
54... Kg7 {[%clk 0:00:38.5]} 55. Kxd2 {[%clk 0:00:17.2]} 55... Rxf4 {[%clk
0:00:39.3]} 56. Ke3 {[%clk 0:00:18.2]} 56... Re4+ {[%clk 0:00:39.6]} 57. Kf3
{[%clk 0:00:19]} 57... Re6 {[%clk 0:00:40.5]} 58. Ra5 {[%clk 0:00:19.7]} 58...
Kf6 {[%clk 0:00:41.4]} 59. Ra8 {[%clk 0:00:20.1]} 59... Rb6 {[%clk 0:00:41.5]}
60. Ra3 {[%clk 0:00:20]} 60... Rb4 {[%clk 0:00:38.6]} 61. Ra6+ {[%clk
0:00:20.4]} 61... Kg5 {[%clk 0:00:39.4]} 62. Ra3 {[%clk 0:00:20.8]} 62... f6
{[%clk 0:00:39.7]} 63. Rc3 {[%clk 0:00:20.9]} 63... Rf4+ {[%clk 0:00:40.5]} 64.
Kg3 {[%clk 0:00:21.7]} 64... Rg4+ {[%clk 0:00:40.9]} 65. Kf3 {[%clk 0:00:22.8]}
65... Rh4 {[%clk 0:00:41.9]} 66. Rc5 {[%clk 0:00:15.2]} 66... Rh3+ {[%clk
0:00:42.4]} 67. Kg2 {[%clk 0:00:16]} 67... Ra3 {[%clk 0:00:42.9]} 68. Kf2 {[%clk
0:00:16.8]} 68... Kg4 {[%clk 0:00:43.8]} 69. Rc4+ {[%clk 0:00:15.1]} 69... f4
{[%clk 0:00:44.9]} 70. Rb4 {[%clk 0:00:10]} 70... Ra2+ {[%clk 0:00:45.4]} 71.
Kf1 {[%clk 0:00:10.2]} 71... f5 {[%clk 0:00:46.2]} 72. Rb3 {[%clk 0:00:05.4]}
72... f3 {[%clk 0:00:46.5]} 73. Rb4+ {[%clk 0:00:05]} 73... Kg3 {[%clk
0:00:46.6]} 74. Rb1 {[%clk 0:00:04.5]} 74... Rh2 {[%clk 0:00:46.6]} 75. Kg1
{[%clk 0:00:04.4]} 75... f2+ {[%clk 0:00:47]} 0-1

[Event "*** MasterClass Titled Tuesday Blitz"]
[Site "Chess.com"]
[Date "2017.12.12"]
[Round "6"]
[White "TST2014"]
[Black "lucasmito"]
[Result "0-1"]
[WhiteElo "2255"]
[BlackElo "2244"]
[TimeControl "180+2"]
[EndTime "14:26:49 PST"]
[Termination "lucasmito won on time"]

1. d4 {[%clk 0:03:01.9]} 1... Nf6 {[%clk 0:02:59.8]} 2. c4 {[%clk 0:03:02.9]}
2... g6 {[%clk 0:03:00.4]} 3. Nf3 {[%clk 0:03:04.2]} 3... Bg7 {[%clk 0:02:59.8]}
4. Nc3 {[%clk 0:03:05.6]} 4... c6 {[%clk 0:02:58.2]} 5. e4 {[%clk 0:03:03.6]}
5... d6 {[%clk 0:02:53.2]} 6. Be2 {[%clk 0:03:01.4]} 6... Nbd7 {[%clk
0:02:46.8]} 7. O-O {[%clk 0:03:02]} 7... e5 {[%clk 0:02:44.7]} 8. d5 {[%clk
0:02:56.9]} 8... cxd5 {[%clk 0:02:30]} 9. cxd5 {[%clk 0:02:56.9]} 9... Nc5
{[%clk 0:02:24.5]} 10. Qc2 {[%clk 0:02:52.4]} 10... a5 {[%clk 0:02:21.5]} 11.
Nd2 {[%clk 0:02:41.2]} 11... O-O {[%clk 0:02:08.9]} 12. Nc4 {[%clk 0:02:40.4]}
12... Ne8 {[%clk 0:01:58.8]} 13. Be3 {[%clk 0:02:39.7]} 13... b6 {[%clk
0:01:49.8]} 14. f4 {[%clk 0:02:21.6]} 14... exf4 {[%clk 0:01:45.6]} 15. Bxf4
{[%clk 0:02:22.2]} 15... Ba6 {[%clk 0:01:29.4]} 16. e5 {[%clk 0:01:59.9]} 16...
Bxc4 {[%clk 0:01:26.3]} 17. Bxc4 {[%clk 0:01:51.5]} 17... dxe5 {[%clk
0:01:27.2]} 18. Be3 {[%clk 0:01:50.8]} 18... Rc8 {[%clk 0:01:23.5]} 19. Qe2
{[%clk 0:01:44.2]} 19... Nd6 {[%clk 0:01:18.5]} 20. Bb5 {[%clk 0:01:41.9]} 20...
e4 {[%clk 0:01:09.6]} 21. Bc6 {[%clk 0:01:39.7]} 21... Qe7 {[%clk 0:00:54.4]}
22. Rae1 {[%clk 0:01:29.4]} 22... Nd3 {[%clk 0:00:52.6]} 23. Bxb6 {[%clk
0:01:23.7]} 23... Nxe1 {[%clk 0:00:49.7]} 24. Rxe1 {[%clk 0:01:25.2]} 24... Rb8
{[%clk 0:00:24]} 25. Bc5 {[%clk 0:01:22.1]} 25... Qc7 {[%clk 0:00:13.1]} 26. Kh1
{[%clk 0:01:04.9]} 26... f5 {[%clk 0:00:06.2]} 27. Nb5 {[%clk 0:00:48.3]} 27...
Nxb5 {[%clk 0:00:06.4]} 28. Bxf8 {[%clk 0:00:47.1]} 28... Rxf8 {[%clk
0:00:03.7]} 29. Qxb5 {[%clk 0:00:46]} 29... Rb8 {[%clk 0:00:05.1]} 30. Qc5
{[%clk 0:00:43.7]} 30... Be5 {[%clk 0:00:05.5]} 31. Rd1 {[%clk 0:00:33.6]} 31...
Bd6 {[%clk 0:00:04.7]} 32. Qc3 {[%clk 0:00:27.3]} 32... Bxh2 {[%clk 0:00:03.9]}
33. d6 {[%clk 0:00:25.9]} 33... Bxd6 {[%clk 0:00:04.5]} 34. Bd5+ {[%clk
0:00:26.8]} 34... Kf8 {[%clk 0:00:03.4]} 35. Qh8+ {[%clk 0:00:23.2]} 35... Ke7
{[%clk 0:00:04.9]} 36. Qxh7+ {[%clk 0:00:17.9]} 36... Kf6 {[%clk 0:00:05.9]} 37.
Qf7+ {[%clk 0:00:18.2]} 37... Qxf7 {[%clk 0:00:06.5]} 38. Bxf7 {[%clk
0:00:18.6]} 38... Kxf7 {[%clk 0:00:05.7]} 39. Rxd6 {[%clk 0:00:20]} 39... Rxb2
{[%clk 0:00:07.2]} 40. a4 {[%clk 0:00:19.3]} 40... Rb4 {[%clk 0:00:06.7]} 41. g4
{[%clk 0:00:18.2]} 41... Rxa4 {[%clk 0:00:06.3]} 42. gxf5 {[%clk 0:00:18.7]}
42... gxf5 {[%clk 0:00:08.2]} 43. Kg2 {[%clk 0:00:19.9]} 43... Ra3 {[%clk
0:00:08.2]} 44. Rb6 {[%clk 0:00:19.6]} 44... a4 {[%clk 0:00:08.4]} 45. Kf2
{[%clk 0:00:20.5]} 45... Rf3+ {[%clk 0:00:09.4]} 46. Ke2 {[%clk 0:00:21.5]}
46... a3 {[%clk 0:00:11.3]} 47. Ra6 {[%clk 0:00:21.3]} 47... f4 {[%clk
0:00:11.5]} 48. Ra4 {[%clk 0:00:21.1]} 48... Re3+ {[%clk 0:00:12.2]} 49. Kd2
{[%clk 0:00:22.2]} 49... Ke6 {[%clk 0:00:13.2]} 50. Ra5 {[%clk 0:00:21.7]} 50...
Rh3 {[%clk 0:00:10.2]} 51. Ra4 {[%clk 0:00:21.1]} 51... Kf5 {[%clk 0:00:10.5]}
52. Ra5+ {[%clk 0:00:20.8]} 52... Kg4 {[%clk 0:00:11.6]} 53. Ra4 {[%clk
0:00:22.2]} 53... e3+ {[%clk 0:00:11.5]} 54. Kd3 {[%clk 0:00:23.1]} 54... Kf3
{[%clk 0:00:10.6]} 55. Rxa3 {[%clk 0:00:23.9]} 55... Rh2 {[%clk 0:00:11.2]} 56.
Kd4 {[%clk 0:00:21.1]} 56... Rd2+ {[%clk 0:00:11.6]} 57. Ke5 {[%clk 0:00:22.3]}
57... Rd8 {[%clk 0:00:09.4]} 58. Rb3 {[%clk 0:00:19]} 58... Re8+ {[%clk
0:00:10.5]} 59. Kd4 {[%clk 0:00:20.2]} 59... Kf2 {[%clk 0:00:10.4]} 60. Kd3
{[%clk 0:00:20.6]} 60... e2 {[%clk 0:00:11]} 61. Rb2 {[%clk 0:00:21.9]} 61...
Kf1 {[%clk 0:00:11]} 62. Rb4 {[%clk 0:00:14.6]} 62... f3 {[%clk 0:00:07.4]} 63.
Rf4 {[%clk 0:00:13]} 63... e1=Q {[%clk 0:00:06.9]} 64. Rxf3+ {[%clk 0:00:13.5]}
64... Kg2 {[%clk 0:00:08.1]} 65. Rf2+ {[%clk 0:00:12.2]} 65... Qxf2 {[%clk
0:00:08.2]} 0-1